[Event "WCCC G10 2019"]
[Site "Weifang"]
[Date "2019.08.28"]
[Round "7.10"]
[White "Kirtadze, Anastasia"]
[Black "Aswinika, Mani"]
[Result "1/2-1/2"]
[ECO "A70"]
[WhiteElo "1532"]
[BlackElo "1242"]
[Annotator "NA RC"]
[PlyCount "141"]
[EventDate "2019.08.21"]
[EventType "swiss"]
[EventCountry "CHN"]
[SourceTitle "playchess.com"]
[Source "ChessBase"]
[SourceQuality "1"]
[TimeControl "40/5400+30:1800+30"]

1. d4 {[%emt 0:00:00]} c5 {[%emt 0:00:00]} 2. d5 {[%emt 0:00:00]} e6 {[%emt 0:00:28]} 3. c4 {[%emt 0:00:12]} exd5 {[%emt 0:00:07]} 4. cxd5 {[%emt 0:00:07]} d6 {[%emt 0:00:06]} 5. Nc3 {[%emt 0:01:03]} Nf6 {[%emt 0:00:28]} 6. e4 {[%emt 0:00:38]} g6 {[%emt 0:00:19]} 7. Nf3 {[%emt 0:00:37]} Bg7 {[%emt 0:00:32]} 8. Bd3 {[%emt 0:00:19]} O-O {[%emt 0:00:11]} 9. O-O {[%emt 0:00:15]} Bg4 {[%emt 0:00:55]} 10. h3 {[%emt 0:02:18]} Bxf3 {[%emt 0:01:47]} 11. Qxf3 {[%emt 0:00:42]} a6 {[%emt 0:02:08]} 12. a4 {[%emt 0:00:18]} Nfd7 {[%emt 0:03:48]} 13. Qe2 {[%emt 0:06:53]} Ne5 {[%emt 0:01:20]} 14. f4 {[%emt 0:01:45]} Nxd3 {[%emt 0:00:21]} 15. Qxd3 {[%emt 0:00:06]} Re8 {[%emt 0:04:19]} 16. Kh1 {[%emt 0:03:00]} Nd7 {[%emt 0:01:12]} 17. Bd2 {[%emt 0:01:58]} Rc8 {[%emt 0:02:09]} 18. b3 {[%emt 0:04:36]} c4 {[%emt 0:02:29]} 19. bxc4 {[%emt 0:11:22]} Nc5 {[%emt 0:01:16]} 20. Qc2 {[%emt 0:00:52]} Bxc3 {[%emt 0:02:31]} 21. Bxc3 {[%emt 0:00:06]} Nxe4 {[%emt 0:00:35]} 22. Bb2 {[%emt 0:17:43]} Ng3+ {[%emt 0:05:16]} 23. Kh2 {[%emt 0:00:16]} Nxf1+ {[%emt 0:00:55]} 24. Rxf1 {[%emt 0:00:05]} Qe7 {[%emt 0:04:21]} 25. Rf2 {[%emt 0:01:48]} f6 {[%emt 0:05:07]} 26. Qc3 {[%emt 0:01:23]} Rc7 {[%emt 0:01:54]} 27. Rf3 {[%emt 0:06:01]} b5 {[%emt 0:03:33]} 28. axb5 {[%emt 0:04:34]} axb5 {[%emt 0:00:39]} 29. Qb3 {[%emt 0:07:25]} bxc4 {[%emt 0:02:34]} 30. Qc3 {[%emt 0:00:12]} Rb7 {[%emt 0:03:59]} 31. Qd4 {[%emt 0:01:47]} Rb5 {[%emt 0:10:21]} 32. Bc3 {[%emt 0:01:23]} Rc5 {[%emt 0:07:39]} 33. Bb4 {[%emt 0:00:29]} Rc7 {[%emt 0:01:05]} 34. Bc3 {[%emt 0:00:35]} Qf7 {[%emt 0:03:01]} 35. Bb4 {[%emt 0:01:15]} Qe7 {[%emt 0:04:52]} 36. Bc3 {[%emt 0:00:37]} Qf8 {[%emt 0:04:50]} 37. Rg3 {[%emt 0:01:00]} Rce7 {[%emt 0:01:27]} 38. f5 {[%emt 0:01:48]} Re4 {[%emt 0:01:47]} 39. Qd2 {[%emt 0:00:39]} Qg7 {[%emt 0:01:13]} 40. fxg6 {[%emt 0:00:57]} hxg6 {[%emt 0:00:07]} 41. Rf3 {[%emt 0:30:33]} Rf8 {[%emt 0:31:16]} 42. Qb2 {[%emt 0:00:19]} Rh4 {[%emt 0:01:13]} 43. Bxf6 {[%emt 0:00:47]} Rxf6 {[%emt 0:00:06]} 44. Rxf6 {[%emt 0:00:31]} Kh7 {[%emt 0:00:41]} 45. Qf2 {[%emt 0:00:11]} Qh6 {[%emt 0:01:07]} 46. Rf7+ {[%emt 0:01:10]} Kg8 {[%emt 0:00:05]} 47. Rf3 {[%emt 0:01:01]} Re4 {[%emt 0:01:13]} 48. Qc2 {[%emt 0:03:35]} Qh4 {[%emt 0:03:25]} 49. Qb2 {[%emt 0:01:52]} Qe7 {[%emt 0:00:30]} 50. Rg3 {[%emt 0:02:21]} Kh7 {[%emt 0:01:08]} 51. Qf2 {[%emt 0:01:35]} Qg7 {[%emt 0:01:28]} 52. Qf3 {[%emt 0:00:48]} Rd4 {[%emt 0:00:47]} 53. Qe2 {[%emt 0:00:42]} c3 {[%emt 0:00:48]} 54. Qc2 {[%emt 0:02:04]} Rd2 {[%emt 0:01:30]} 55. Qc1 {[%emt 0:02:19]} Qe5 {[%emt 0:00:47]} 56. Qxc3 {[%emt 0:00:21]} Qxc3 {[%emt 0:00:04]} 57. Rxc3 {[%emt 0:00:05]} Rxd5 {[%emt 0:00:03]} 58. Kg3 {[%emt 0:00:05]} Kg7 {[%emt 0:00:13]} 59. Kf4 {[%emt 0:00:15]} Kf6 {[%emt 0:00:14]} 60. Ke4 {[%emt 0:00:30]} Re5+ {[%emt 0:00:36]} 61. Kf4 {[%emt 0:00:16]} Rf5+ {[%emt 0:00:30]} 62. Ke4 {[%emt 0:00:40]} Re5+ {[%emt 0:00:15]} 63. Kd4 {[%emt 0:01:12]} Ke6 {[%emt 0:00:30]} 64. Rg3 {[%emt 0:00:23]} Kf6 {[%emt 0:00:09]} 65. Rf3+ {[%emt 0:00:26]} Ke6 {[%emt 0:00:14]} 66. g4 {[%emt 0:00:51]} Rd5+ {[%emt 0:00:33]} 67. Kc4 {[%emt 0:00:09]} Rc5+ {[%emt 0:00:11]} 68. Kd4 {[%emt 0:00:19]} Rd5+ {[%emt 0:00:11]} 69. Ke4 {[%emt 0:00:11]} Re5+ {[%emt 0:00:06]} 70. Kd4 {[%emt 0:00:33]} Rd5+ {[%emt 0:00:15]} 71. Ke4 {[%emt 0:00:01] Ke5+} 1/2-1/2

[Event "WCCC G10 2019"]
[Site "Weifang"]
[Date "2019.08.29"]
[Round "8.1"]
[White "Li, Rachael"]
[Black "Chen, Yining"]
[Result "1/2-1/2"]
[ECO "C52"]
[WhiteElo "1911"]
[BlackElo "1744"]
[Annotator "NA"]
[PlyCount "251"]
[EventDate "2019.08.21"]
[EventType "swiss"]
[EventCountry "CHN"]
[SourceTitle "playchess.com"]
[Source "ChessBase"]
[SourceQuality "1"]
[TimeControl "40/5400+30:1800+30"]

1. e4 {[%emt 0:00:00]} e5 {[%emt 0:00:00]} 2. Nf3 {[%emt 0:00:00]} Nc6 {[%emt 0:00:00]} 3. Bc4 {[%emt 0:00:00]} Bc5 {[%emt 0:00:18]} 4. b4 {[%emt 0:00:00]} Bxb4 {[%emt 0:00:27]} 5. c3 {[%emt 0:00:00]} Ba5 {[%emt 0:00:18]} 6. d4 {[%emt 0:00:04]} d6 {[%emt 0:06:46]} 7. Qb3 {[%emt 0:00:08]} Qd7 {[%emt 0:01:29]} 8. dxe5 {[%emt 0:00:10] C52: Evans Gambit Accepted: 5 c3 Ba5} (8. O-O Bb6 9. Bb5 a6 10. Ba4 Ba7 11. Na3 Nge7 12. d5 b5 13. Nxb5 axb5 14. Bxb5 O-O 15. dxc6 Qg4 16. Qc2 {0-1 (48) Li,C (2751)-Ding,L (2766) Huaian 2016}) 8... Nxe5 {[%emt 0:03:14]} 9. Nxe5 {[%emt 0:00:26]} dxe5 {[%emt 0:00:05]} 10. Bxf7+ {[%emt 0:00:45]} Qxf7 {[%emt 0:00:54]} 11. Qb5+ {[%emt 0:00:07]} c6 $146 {[%emt 0:03:24]} ({Predecessor:} 11... Bd7 12. Qxa5 Qg6 13. Qxe5+ Ne7 14. Bg5 Be6 15. Bxe7 {Doplmayr,F-Fyri,T corr 1994}) 12. Qxa5 {[%emt 0:07:59]} Qe6 {[%emt 0:01:51]} 13. Ba3 {[%emt 0:09:47]} b6 {[%emt 0:02:19]} 14. Qa4 {[%emt 0:01:36]} Bd7 {[%emt 0:00:45]} 15. O-O {[%emt 0:01:42]} c5 {[%emt 0:01:32]} 16. Qb3 {[%emt 0:06:19]} Ne7 {[%emt 0:06:43]} 17. Rd1 {[%emt 0:07:48]} Qxb3 {[%emt 0:05:08]} 18. axb3 {[%emt 0:00:12]} Nc6 {[%emt 0:00:51]} 19. Nd2 {[%emt 0:10:22]} Be6 {[%emt 0:01:25]} 20. Bb2 {[%emt 0:02:33]} Ke7 {[%emt 0:01:59]} 21. b4 {[%emt 0:08:01]} cxb4 {[%emt 0:18:36]} 22. cxb4 {[%emt 0:00:16]} Nxb4 {[%emt 0:02:00]} 23. Bxe5 {[%emt 0:02:44]} Kf7 {[%emt 0:02:45]} 24. Nf3 {[%emt 0:02:29]} Bg4 $2 {[%emt 0:06:38]} (24... Rhe8 $16) 25. Bc3 {[%emt 0:06:02]} Nc6 {[%emt 0:05:00]} 26. Rd6 {[%emt 0:07:46]} Bxf3 {[%emt 0:02:11]} 27. Rxc6 {[%emt 0:03:33]} Bxe4 {[%emt 0:07:12]} 28. Rc7+ {[%emt 0:00:02]} Ke6 {[%emt 0:01:15]} 29. f3 {[%emt 0:05:57]} Rhc8 {[%emt 0:02:36]} 30. Rxg7 {[%emt 0:02:59]} Rxc3 {[%emt 0:02:33]} 31. fxe4 {[%emt 0:00:07]} a5 {[%emt 0:00:38]} 32. Rxh7 {[%emt 0:07:55]} Ke5 {[%emt 0:04:57]} 33. Rh5+ {[%emt 0:03:05]} Kxe4 {[%emt 0:03:36]} 34. Rb5 {[%emt 0:00:06]} Rc6 {[%emt 0:00:19]} 35. h4 {[%emt 0:00:45]} Rd8 {[%emt 0:02:26]} 36. Ra4+ {[%emt 0:02:02]} Rd4 {[%emt 0:02:01]} 37. Rxd4+ {[%emt 0:00:50]} Kxd4 {[%emt 0:00:05]} 38. h5 {[%emt 0:00:35]} Ke4 {[%emt 0:01:37]} 39. Kh2 {[%emt 0:01:02]} Kf4 {[%emt 0:02:26]} 40. Kh3 {[%emt 0:00:59]} Rc3+ {[%emt 0:00:39]} 41. Kh4 {[%emt 0:32:38]} Rg3 {[%emt 0:02:11]} 42. Rxb6 {[%emt 0:00:00]} Rg4+ {[%emt 0:03:00]} 43. Kh3 {[%emt 0:00:00]} Rg3+ {[%emt 0:00:04]} 44. Kh2 {[%emt 0:00:00]} Rg5 {[%emt 0:00:10]} 45. h6 {[%emt 0:00:00]} Rh5+ {[%emt 0:00:03]} 46. Kg1 {[%emt 0:00:00]} Kg5 {[%emt 0:00:10]} 47. Kf2 {[%emt 0:00:00]} Rxh6 {[%emt 0:00:23]} 48. Rb5+ {[%emt 0:00:00]} Kg4 {[%emt 0:00:16]} 49. Rxa5 {[%emt 0:00:00]} Rb6 {[%emt 0:00:07]} 50. Ra4+ {[%emt 0:00:00]} Kg5 {[%emt 0:00:04]} 51. Kg3 {[%emt 0:00:00]} Rb3+ {[%emt 0:00:06]} 52. Kh2 {[%emt 0:00:00]} Rb8 {[%emt 0:00:08]} 53. Kh3 {[%emt 0:00:00]} Rc8 {[%emt 0:00:37]} 54. Ra5+ {[%emt 0:00:00]} Kg6 {[%emt 0:00:03]} 55. Kh4 {[%emt 0:00:00]} Rb8 {[%emt 0:00:09]} 56. Ra6+ {[%emt 0:00:00]} Kg7 {[%emt 0:00:04]} 57. g4 {[%emt 0:00:00]} Rc8 {[%emt 0:00:12]} 58. Kh5 {[%emt 0:00:00]} Rb8 {[%emt 0:00:30]} 59. Ra7+ {[%emt 0:00:00]} Kg8 {[%emt 0:00:03]} 60. g5 {[%emt 0:00:00]} Rc8 {[%emt 0:00:06]} 61. Kh6 {[%emt 0:00:00]} Rb8 {[%emt 0:00:08]} 62. Re7 {[%emt 0:00:00]} Rc8 {[%emt 0:00:38]} 63. Re6 {[%emt 0:00:00]} Rb8 {[%emt 0:00:46]} 64. Kg6 {[%emt 0:00:00]} Rd8 {[%emt 0:00:22]} 65. Kf5 {[%emt 0:00:00]} Rd5+ {[%emt 0:00:13]} 66. Kf6 {[%emt 0:00:00]} Rd8 {[%emt 0:00:04]} 67. Ke7 {[%emt 0:00:00]} Ra8 {[%emt 0:00:15]} 68. Kf6 {[%emt 0:00:00]} Rb8 {[%emt 0:00:05]} 69. Ra6 {[%emt 0:00:00]} Rf8+ $11 {[%emt 0:00:28]} 70. Kg6 {[%emt 0:00:00]} Rb8 {[%emt 0:00:09]} 71. Kh6 {[%emt 0:00:00]} Rc8 {[%emt 0:00:14]} 72. Rb6 {[%emt 0:00:00]} Ra8 {[%emt 0:00:04]} 73. Rg6+ {[%emt 0:00:00]} Kh8 $1 {[%emt 0:00:11]} 74. Rc6 {[%emt 0:00:00]} Kg8 {[%emt 0:00:17]} 75. Kh5 {[%emt 0:00:00]} Rb8 {[%emt 0:00:24]} 76. Kg4 {[%emt 0:00:00]} Rb4+ {[%emt 0:00:12]} 77. Kf5 {[%emt 0:00:00]} Rb5+ {[%emt 0:00:05]} 78. Kf6 {[%emt 0:00:00]} Rb8 {[%emt 0:00:06]} 79. Re6 {[%emt 0:00:00]} Rc8 {[%emt 0:01:10]} 80. Re1 {[%emt 0:00:00]} Rc6+ {[%emt 0:00:06]} 81. Kf5 {[%emt 0:00:00]} Rc5+ {[%emt 0:00:08]} 82. Kg6 {[%emt 0:00:00]} Rc6+ {[%emt 0:00:03]} 83. Kh5 {[%emt 0:00:00]} Rc8 {[%emt 0:00:01]} 84. Rf1 {[%emt 0:00:00]} Rb8 {[%emt 0:00:06]} 85. Kh6 {[%emt 0:00:00]} Rb6+ {[%emt 0:00:11]} 86. Kh5 {[%emt 0:00:00]} Rb8 {[%emt 0:00:03]} 87. Kg6 {[%emt 0:00:00]} Rb6+ {[%emt 0:00:15]} 88. Rf6 {[%emt 0:00:00]} Rb8 {[%emt 0:00:03]} 89. Rf2 {[%emt 0:00:00]} Rb6+ {[%emt 0:00:04]} 90. Kh5 {[%emt 0:00:00]} Rb8 {[%emt 0:00:04]} 91. Rf5 {[%emt 0:00:00]} Rc8 {[%emt 0:00:03]} 92. Rb5 {[%emt 0:00:00]} Ra8 {[%emt 0:00:04]} 93. Kg4 {[%emt 0:00:38]} Rc8 {[%emt 0:00:19]} 94. Rb6 {[%emt 0:00:00]} Rc4+ {[%emt 0:00:14]} 95. Kf5 {[%emt 0:00:00]} Rc5+ {[%emt 0:00:00]} 96. Kf6 {[%emt 0:00:00]} Rc8 {[%emt 0:00:00]} 97. Ra6 {[%emt 0:00:00]} Rb8 {[%emt 0:00:11]} 98. Rc6 {[%emt 0:00:04]} Ra8 {[%emt 0:00:04]} 99. Kg6 {[%emt 0:00:55]} Rb8 {[%emt 0:00:09]} 100. Kh5 {[%emt 0:00:04]} Ra8 {[%emt 0:00:08]} 101. Rg6+ {[%emt 0:00:05]} Kh7 {[%emt 0:00:06]} 102. Rb6 {[%emt 0:00:18]} Kg8 {[%emt 0:00:05]} 103. Kh6 {[%emt 0:00:15]} Rc8 {[%emt 0:00:09]} 104. Rb7 {[%emt 0:00:17]} Rc6+ {[%emt 0:00:04]} 105. g6 {[%emt 0:00:53]} Rc8 {[%emt 0:00:10]} 106. Rg7+ {[%emt 0:00:09]} Kh8 {[%emt 0:00:03]} 107. Rf7 {[%emt 0:00:09]} Kg8 {[%emt 0:00:26]} 108. Rf6 {[%emt 0:00:17]} Rb8 {[%emt 0:00:24]} 109. Rc6 {[%emt 0:00:51]} Ra8 {[%emt 0:00:08]} 110. Kg5 {[%emt 0:00:22]} Ra5+ {[%emt 0:00:06]} 111. Kf6 {[%emt 0:00:04]} Ra8 {[%emt 0:00:04]} 112. Re6 {[%emt 0:01:13]} Rb8 {[%emt 0:00:11]} 113. Re1 {[%emt 0:01:11]} Rb6+ {[%emt 0:00:02]} 114. Re6 {[%emt 0:02:16]} Rxe6+ {[%emt 0:00:23]} 115. Kxe6 {[%emt 0:00:04]} Kg7 {[%emt 0:00:02]} 116. Kf5 {[%emt 0:00:11]} Kg8 {[%emt 0:00:03]} 117. Kg4 {[%emt 0:00:05]} Kg7 {[%emt 0:00:04]} 118. Kg5 {[%emt 0:00:09]} Kg8 {[%emt 0:00:03]} 119. Kh4 {[%emt 0:00:16]} Kg7 {[%emt 0:00:02]} 120. Kh5 {[%emt 0:00:11]} Kg8 {[%emt 0:00:05]} 121. Kh6 {[%emt 0:00:14]} Kh8 {[%emt 0:00:03]} 122. Kg5 {[%emt 0:01:17]} Kg7 {[%emt 0:00:06]} 123. Kf5 {[%emt 0:00:07]} Kg8 {[%emt 0:00:05]} 124. Kf6 {[%emt 0:00:10]} Kf8 {[%emt 0:00:02]} 125. g7+ {[%emt 0:00:07]} Kg8 {[%emt 0:00:03]} 126. Kg6 {[%emt 0:00:08]} 1/2-1/2

[Event "WCCC G10 2019"]
[Site "Weifang"]
[Date "2019.08.29"]
[Round "8.2"]
[White "Kaliakhmet, Elnaz"]
[Black "Lee, Alice"]
[Result "0-1"]
[ECO "D55"]
[WhiteElo "1538"]
[BlackElo "1822"]
[Annotator "NA"]
[PlyCount "90"]
[EventDate "2019.08.21"]
[EventType "swiss"]
[EventCountry "CHN"]
[SourceTitle "playchess.com"]
[Source "ChessBase"]
[SourceQuality "1"]
[TimeControl "40/5400+30:1800+30"]

1. d4 {[%emt 0:00:00]} d5 {[%emt 0:00:00]} 2. c4 {[%emt 0:00:23]} e6 {[%emt 0:00:00]} 3. Nc3 {[%emt 0:00:26]} Be7 {[%emt 0:00:14]} 4. Nf3 {[%emt 0:00:40]} Nf6 {[%emt 0:00:19]} 5. Bg5 {[%emt 0:00:09]} h6 {[%emt 0:00:08]} 6. Bxf6 {[%emt 0:00:11]} Bxf6 {[%emt 0:00:03]} 7. e3 {[%emt 0:00:48]} O-O {[%emt 0:01:42]} 8. Rc1 {[%emt 0:00:39]} dxc4 {[%emt 0:01:05] D55: Queen's Gambit Declined: 4 Bg5 Be7: Lines without ...h6 and 6...h6 7 Bxf6} (8... c6 9. Bd3 Nd7 10. O-O dxc4 11. Bxc4 e5 12. Bb3 exd4 13. exd4 Re8 14. h3 Nb6 15. Re1 Bf5 16. g4 Bg6 17. Rxe8+ Qxe8 18. Qd2 Qd7 19. Qf4 Re8 20. Rd1 Qc8 21. Ne5 Bxe5 22. dxe5 Rd8 23. Rd4 Qc7 {1-0 (43) Radjabov,T (2751)-Sargissian,G (2691) Batumi 2018}) 9. Bxc4 {[%emt 0:03:11]} c5 {[%emt 0:01:17]} 10. dxc5 {[%emt 0:07:29]} Qa5 {[%emt 0:02:48]} 11. O-O {[%emt 0:01:18]} Qxc5 {[%emt 0:01:29]} 12. Ne4 {[%emt 0:05:15]} Qe7 {[%emt 0:01:25]} 13. Qe2 $146 {[%emt 0:02:36]} ({Predecessor:} 13. Nxf6+ Qxf6 14. Qd4 Nc6 15. Qxf6 gxf6 16. Rfd1 {1-0 (81) Sergeev,V-Gershman,S Kiev 1986}) 13... Bd7 {[%emt 0:09:03]} 14. Rfd1 {[%emt 0:00:57]} Bc6 {[%emt 0:01:52]} 15. Ng3 {[%emt 0:07:56]} Bxf3 {[%emt 0:08:47]} 16. Qxf3 {[%emt 0:02:01]} Nc6 {[%emt 0:03:34]} 17. Qe2 {[%emt 0:06:50]} Rac8 {[%emt 0:01:56]} 18. Ne4 {[%emt 0:01:56]} Be5 {[%emt 0:02:20]} 19. b3 {[%emt 0:03:15]} (19. g3 $11) 19... Bxh2+ {[%emt 0:02:32]} 20. Kxh2 {[%emt 0:00:12]} Qh4+ {[%emt 0:00:16]} 21. Kg1 {[%emt 0:01:02]} Qxe4 {[%emt 0:00:40]} 22. Bd3 {[%emt 0:10:30]} Qh4 {[%emt 0:04:19]} 23. Rc4 {[%emt 0:00:00]} Qe7 {[%emt 0:01:38]} 24. Bb1 {[%emt 0:00:34]} f5 {[%emt 0:02:07]} 25. Rc2 {[%emt 0:05:01]} Nb4 {[%emt 0:07:48]} 26. Rcd2 {[%emt 0:02:32]} (26. Rxc8 $11 {keeps the balance.} Rxc8 27. e4) 26... Nd5 {[%emt 0:02:42]} 27. Qe1 {[%emt 0:04:27]} Qf6 {[%emt 0:02:10]} 28. Bd3 {[%emt 0:01:09]} Kh8 {[%emt 0:10:03]} 29. Rc1 {[%emt 0:02:47]} Qg5 {[%emt 0:06:29]} 30. Rxc8 {[%emt 0:03:10]} Rxc8 {[%emt 0:00:04]} 31. Bc4 {[%emt 0:01:27]} Rc5 {[%emt 0:04:30]} 32. Rd3 {[%emt 0:07:03]} Qf6 {[%emt 0:02:52]} 33. Qd1 {[%emt 0:06:33]} Nb6 {[%emt 0:04:26]} 34. Rd8+ {[%emt 0:04:14]} Kh7 {[%emt 0:00:04]} 35. Rb8 {[%emt 0:07:40]} Nxc4 {[%emt 0:02:27]} 36. bxc4 {[%emt 0:00:06]} b6 {[%emt 0:02:40]} 37. Rb7 {[%emt 0:01:48]} Rxc4 {[%emt 0:02:58]} 38. Rxa7 $2 {[%emt 0:00:20]} (38. Rd7) 38... Qb2 $19 {[%emt 0:01:12]} 39. Qh5 {[%emt 0:02:21]} Rc1+ {[%emt 0:02:06]} 40. Kh2 {[%emt 0:00:05]} Qxf2 {[%emt 0:01:02]} 41. Qf3 {[%emt 0:30:51]} Qg1+ {[%emt 0:31:57]} 42. Kg3 {[%emt 0:00:28]} Rc3 {[%emt 0:02:06]} 43. Kf4 {[%emt 0:00:00]} Qh2+ {[%emt 0:00:00]} 44. g3 {[%emt 0:00:00]} Qd2 {[%emt 0:00:00]} 45. g4 {[%emt 0:00:00]} Qd6# {[%emt 0:00:00]} 0-1

[Event "WCCC G10 2019"]
[Site "Weifang"]
[Date "2019.08.29"]
[Round "8.3"]
[White "Feng, Eunice"]
[Black "Nurgaliyeva, Zarina"]
[Result "1-0"]
[ECO "C54"]
[WhiteElo "1280"]
[BlackElo "1474"]
[Annotator "NA"]
[PlyCount "83"]
[EventDate "2019.08.21"]
[EventType "swiss"]
[EventCountry "CHN"]
[SourceTitle "playchess.com"]
[Source "ChessBase"]
[SourceQuality "1"]
[TimeControl "40/5400+30:1800+30"]

1. e4 {[%emt 0:00:00]} e5 {[%emt 0:00:00]} 2. Nf3 {[%emt 0:00:00]} Nc6 {[%emt 0:00:00]} 3. Bc4 {[%emt 0:00:00]} Bc5 {[%emt 0:00:00]} 4. c3 {[%emt 0:00:00]} Nf6 {[%emt 0:00:00]} 5. d4 {[%emt 0:00:00]} exd4 {[%emt 0:00:00]} 6. e5 {[%emt 0:00:00]} d5 {[%emt 0:00:01]} 7. Bb5 {[%emt 0:00:02]} Ne4 {[%emt 0:00:07]} 8. cxd4 {[%emt 0:00:06]} Bb6 {[%emt 0:00:15]} 9. Nc3 {[%emt 0:00:07]} O-O {[%emt 0:00:30]} 10. Be3 {[%emt 0:00:05]} f5 {[%emt 0:01:33]} 11. Qb3 {[%emt 0:09:35]} Ne7 {[%emt 0:02:57]} 12. O-O-O {[%emt 0:07:04]} Nxc3 {[%emt 0:17:35]} 13. Qxc3 {[%emt 0:01:33]} a5 {[%emt 0:02:40]} 14. g3 {[%emt 0:06:43]} Bd7 {[%emt 0:05:35]} 15. Be2 {[%emt 0:04:00]} a4 {[%emt 0:06:10]} 16. Nd2 {[%emt 0:07:11]} Ba5 {[%emt 0:01:41]} 17. Qc2 {[%emt 0:01:00]} b6 {[%emt 0:03:02]} 18. f4 {[%emt 0:03:35]} c5 {[%emt 0:03:21]} 19. dxc5 {[%emt 0:07:09]} bxc5 {[%emt 0:00:16]} 20. Kb1 {[%emt 0:00:28]} Bb6 {[%emt 0:12:54]} 21. Bxc5 {[%emt 0:06:07]} Rc8 {[%emt 0:01:02]} 22. Bxe7 {[%emt 0:00:23]} Qxe7 {[%emt 0:00:12]} 23. Qd3 {[%emt 0:00:15]} Be6 {[%emt 0:02:44]} 24. Rc1 {[%emt 0:01:46]} Rb8 {[%emt 0:01:34]} 25. Nf3 {[%emt 0:08:35]} d4 {[%emt 0:12:05]} 26. Nxd4 {[%emt 0:04:45]} Bxd4 {[%emt 0:00:11]} 27. Qxd4 {[%emt 0:00:10]} Rfd8 {[%emt 0:00:13]} 28. Qc3 {[%emt 0:07:22]} Rb4 {[%emt 0:07:26]} 29. Rhd1 {[%emt 0:14:22]} Rdb8 {[%emt 0:01:02]} 30. Rc2 {[%emt 0:01:33]} Qa7 {[%emt 0:09:15]} 31. Qa3 {[%emt 0:06:27]} h6 {[%emt 0:04:59]} 32. Rcd2 {[%emt 0:00:57]} Qc7 {[%emt 0:01:49]} 33. Rd8+ {[%emt 0:02:07]} Rxd8 {[%emt 0:02:52]} 34. Rxd8+ {[%emt 0:00:05]} Qxd8 {[%emt 0:00:06]} 35. Qxb4 {[%emt 0:00:07]} Qa8 {[%emt 0:00:35]} 36. Bd1 {[%emt 0:02:26]} Bd7 {[%emt 0:00:56]} 37. Qd4 {[%emt 0:00:52]} Qc6 {[%emt 0:01:22]} 38. b3 {[%emt 0:00:32]} axb3 {[%emt 0:00:49]} 39. Bxb3+ {[%emt 0:00:30]} Kh7 {[%emt 0:00:28]} 40. Qd5 {[%emt 0:00:17]} Qc7 {[%emt 0:00:53]} 41. Qg8+ {[%emt 0:30:08]} Kg6 {[%emt 0:30:06]} 42. Bf7# {[%emt 0:00:06]} 1-0

[Event "WCCC G10 2019"]
[Site "Weifang"]
[Date "2019.08.29"]
[Round "8.5"]
[White "Yesugen Khuchbayar"]
[Black "Ho, Ngoc Vy"]
[Result "0-1"]
[ECO "D00"]
[WhiteElo "1325"]
[BlackElo "1416"]
[Annotator "NA"]
[PlyCount "83"]
[EventDate "2019.08.21"]
[EventType "swiss"]
[EventCountry "CHN"]
[SourceTitle "playchess.com"]
[Source "ChessBase"]
[SourceQuality "1"]
[TimeControl "40/5400+30:1800+30"]

1. f4 {[%emt 0:00:00]} Nf6 {[%emt 0:00:22]} 2. Nf3 {[%emt 0:00:00]} d5 {[%emt 0:00:13]} 3. e3 {[%emt 0:00:26]} Bf5 {[%emt 0:02:27]} 4. d4 {[%emt 0:00:53]} e6 {[%emt 0:00:59]} 5. Ne5 {[%emt 0:11:42]} Nbd7 {[%emt 0:05:26]} 6. Nd2 {[%emt 0:05:40]} c6 {[%emt 0:02:50]} 7. Ndf3 {[%emt 0:00:32]} Bd6 {[%emt 0:02:00]} 8. Bd3 {[%emt 0:10:13]} Be4 {[%emt 0:07:47]} 9. O-O {[%emt 0:01:34]} O-O {[%emt 0:00:28]} 10. h3 {[%emt 0:03:24]} c5 {[%emt 0:02:34]} 11. g4 {[%emt 0:06:21]} Rc8 {[%emt 0:07:37]} 12. c3 {[%emt 0:03:43]} Bxd3 {[%emt 0:01:22]} 13. Qxd3 {[%emt 0:00:25]} Ne4 {[%emt 0:00:41]} 14. Qc2 {[%emt 0:08:22]} c4 {[%emt 0:03:21]} 15. Qg2 {[%emt 0:08:21]} Ndf6 {[%emt 0:10:40]} 16. Bd2 {[%emt 0:01:54]} b5 {[%emt 0:00:18]} 17. Be1 {[%emt 0:03:28]} a5 {[%emt 0:09:02]} 18. g5 {[%emt 0:02:29]} Nh5 {[%emt 0:01:30]} 19. Nd2 {[%emt 0:02:21]} f6 {[%emt 0:08:46]} 20. gxf6 {[%emt 0:04:06]} Nhxf6 {[%emt 0:03:19]} 21. Nxe4 {[%emt 0:06:06]} Nxe4 {[%emt 0:00:20]} 22. Kh2 {[%emt 0:02:07]} b4 {[%emt 0:00:58]} 23. Rg1 {[%emt 0:00:40]} Qe7 {[%emt 0:00:49]} 24. Bh4 {[%emt 0:00:50]} Qb7 {[%emt 0:00:10]} 25. Qg4 {[%emt 0:01:05]} Rce8 {[%emt 0:01:58]} 26. cxb4 {[%emt 0:01:28]} axb4 {[%emt 0:00:16]} 27. Rg2 {[%emt 0:01:33]} Bxe5 {[%emt 0:02:29]} 28. fxe5 {[%emt 0:01:06]} Kh8 {[%emt 0:02:14]} 29. Rag1 {[%emt 0:01:06]} Rf7 {[%emt 0:00:20]} 30. Qh5 {[%emt 0:01:16]} Ref8 {[%emt 0:01:37]} 31. Rg6 {[%emt 0:01:18]} Qd7 {[%emt 0:00:56]} 32. R6g2 {[%emt 0:02:22]} c3 {[%emt 0:00:46]} 33. bxc3 {[%emt 0:00:36]} bxc3 {[%emt 0:00:20]} 34. Rc2 {[%emt 0:01:06]} Qa4 {[%emt 0:07:42]} 35. Rgg2 {[%emt 0:02:15]} Qb4 {[%emt 0:10:11]} 36. Qg4 {[%emt 0:04:04]} Nd2 {[%emt 0:01:00]} 37. Rc1 {[%emt 0:02:28]} Nf1+ {[%emt 0:02:17]} 38. Kg1 {[%emt 0:00:44]} Nxe3 {[%emt 0:00:13]} 39. Qe2 {[%emt 0:00:32]} Nxg2 {[%emt 0:00:34]} 40. Qxg2 {[%emt 0:00:26]} Qxd4+ {[%emt 0:00:16]} 41. Kh1 {[%emt 0:30:44]} Qxh4 {[%emt 0:00:40]} 42. Ra1 0-1